bitfinex-derivatives/quotes_SOLF0:USTF0_20241208
["timestamp","ask_amount","ask_price","bid_price","bid_amount"]
[1733670067669,1.92,236.53,236.36,2.114]
[1733670068169,1.92,236.53,236.38,2.1138]
[1733670068170,2.113,236.48,236.38,2.1138]
[1733670068371,1.92,236.53,236.39,1.92]
[1733670068565,4.2239,236.59,236.39,1.92]
[1733670068767,1.92,236.58,236.39,1.92]
[1733670069569,2.1132,236.45,236.39,1.92]
[1733670069773,1.92,236.46,236.35,2.639]
[1733670070073,1.92,236.45,236.35,2.639]
[1733670070276,2.1138,236.38,236.35,2.639]
[1733670070475,1.92,236.44,236.29,3.294]
[1733670071375,1.92,236.44,236.29,1.92]
[1733670072074,2.1143,236.33,236.29,1.92]
[1733670072273,1.92,236.4,236.29,1.92]
[1733670073369,2.1144,236.32,236.29,1.92]
[1733670073772,1.92,236.4,236.25,1.92]
[1733670073976,2.1144,236.31,236.25,4.0349]
[1733670075369,1.92,236.35,236.23,2.6745]
[1733670075571,1.92,236.34,236.23,2.6745]
[1733670075771,204.7,236.46,236.18,1.374]
[1733670075772,1.92,236.33,236.18,1.374]
[1733670076070,1.92,236.32,236.19,1.92]
[1733670078475,2.1152,236.23,236.19,1.92]
[1733670080282,2.1153,236.22,236.19,1.92]
[1733670082071,2.1152,236.24,236.19,1.92]
[1733670082268,2.1152,236.24,236.19,3.2825]
[1733670082474,2.1152,236.23,236.19,3.2825]
[1733670083477,2.1152,236.23,236.2,1.0585036]
[1733670083776,2.1152,236.23,236.19,3.2825]
[1733670083971,2.1149,236.26,236.2,1.05850433]
[1733670084274,2.1149,236.26,236.21,3.95793168]
[1733670084476,2.1149,236.26,236.22,3.95793168]
[1733670084778,1.92,236.35,236.23,1.05837316]
[1733670084973,1.92,236.35,236.24,1.92]
[1733670085574,2.1147,236.28,236.24,1.92]
[1733670085974,1.92,236.35,236.24,1.92]
[1733670086276,2.115,236.25,236.24,1.92]
[1733670086480,1.92,236.35,236.2,1.92]
[1733670086679,2.1153,236.22,236.21,3.96219715]
[1733670086874,2.1153,236.22,236.21,1.05842989]
[1733670087182,2.1153,236.22,236.19,1.3625]
[1733670087183,1.92,236.29,236.19,1.3625]
[1733670087383,1.92,236.29,236.2,1.05857673]
[1733670087678,1.92,236.29,236.19,1.3625]
[1733670087879,1.92,236.29,236.2,1.058584]
[1733670088082,1.92,236.29,236.19,1.3625]
[1733670088282,1.92,236.29,236.2,1.05858545]
[1733670088477,1.92,236.29,236.17,1.92]
[1733670088676,1.92,236.29,236.18,2.90740533]
[1733670088877,1.92,236.29,236.17,1.92]
[1733670089077,1.92,236.29,236.18,2.90746622]
[1733670089284,1.92,236.29,236.17,1.92]
[1733670089484,1.92,236.29,236.18,2.90899679]
[1733670089679,1.92,236.29,236.17,1.92]
[1733670089978,1.92,236.29,236.18,2.90898325]
[1733670090180,1.92,236.29,236.17,1.92]
[1733670090985,1.92,236.29,236.15,1.92]
[1733670091282,1.92,236.29,236.16,3.96840528]
[1733670091475,1.92,236.29,236.17,3.96840528]
[1733670091681,1.92,236.29,236.18,2.90975788]
[1733670091975,1.92,236.29,236.15,1.92]
[1733670092375,2.1156,236.18,236.16,2.91054909]
[1733670092573,2.1156,236.18,236.15,1.92]
[1733670092780,2.1156,236.18,236.16,2.91099871]
[1733670092983,2.1156,236.18,236.15,1.92]
[1733670093281,2.1156,236.18,236.16,2.91099168]
[1733670093579,2.1156,236.18,236.15,1.92]
[1733670094584,2.1156,236.18,236.16,2.91157785]
[1733670094974,2.1156,236.18,236.15,1.92]
[1733670095174,2.1156,236.18,236.16,2.91215267]
[1733670095477,2.1156,236.18,236.15,1.92]
[1733670095674,2.1156,236.18,236.16,2.91263931]
[1733670095874,1.92,236.24,236.15,1.92]
[1733670096080,16.9278,236.38,236.16,2.91241453]
[1733670096081,2.08,236.29,236.16,2.91241453]
[1733670096379,2.08,236.29,236.17,10.74627979]
[1733670096575,51.00203459,236.35,236.18,3.97095258]
[1733670096777,2.08,236.34,236.19,2.9123295]
[1733670096986,2.08,236.34,236.2,7.7213295]
[1733670097179,2.08,236.34,236.21,2.9123295]
[1733670097485,2.1148,236.28,236.22,6.08592744]
[1733670097681,2.1148,236.28,236.23,2.9123295]
[1733670097983,2.1148,236.28,236.2,4.809]
[1733670098281,2.1148,236.28,236.21,8.63232383]
[1733670098482,2.1148,236.28,236.22,3.97144132]
[1733670098683,51.00203459,236.35,236.24,2.1151]
[1733670098888,2.1147,236.28,236.24,2.1151]
[1733670099383,53.08203459,236.35,236.25,2.08]
[1733670099384,51.00203459,236.35,236.25,2.08]
[1733670099986,2.1145,236.31,236.25,4.195]
[1733670101380,2.1145,236.3,236.25,4.195]
[1733670102281,51.00203459,236.35,236.25,2.08]
[1733670102586,2.1144,236.32,236.27,2.1148]
[1733670103785,2.1145,236.31,236.27,2.1148]
[1733670105680,2.1144,236.32,236.27,2.1148]
[1733670106485,2.1145,236.31,236.27,2.1148]
[1733670108185,51.00203459,236.35,236.26,1.374]
[1733670108389,2.1146,236.3,236.26,1.374]
[1733670109188,51.00203459,236.35,236.23,2.1152]
[1733670109490,2.08,236.34,236.2,2.729]
[1733670111696,2.1152,236.24,236.2,2.729]
[1733670111896,2.08,236.34,236.2,2.729]
[1733670112096,2.115,236.25,236.2,4.8444]
[1733670112496,2.08,236.34,236.2,2.729]
[1733670116598,2.1145,236.3,236.2,2.729]
[1733670116897,2.08,236.29,236.2,2.729]
[1733670117296,2.1151,236.24,236.21,2.92300647]
[1733670117493,2.1151,236.24,236.2,2.729]
[1733670117693,2.1151,236.24,236.21,2.92300647]
[1733670117898,2.1151,236.24,236.2,4.809]
[1733670118201,2.1151,236.24,236.21,2.92300647]
[1733670118397,2.1151,236.24,236.2,4.809]
[1733670118600,2.1151,236.24,236.21,3.98194342]
[1733670118802,2.1151,236.24,236.22,2.92344622]
[1733670119102,2.1151,236.24,236.2,4.809]
[1733670119103,2.1151,236.24,236.23,2.92335794]
[1733670119402,2.1151,236.24,236.23,2.92375082]
[1733670120001,2.08,236.29,236.23,2.92375082]
[1733670120198,51.00203459,236.35,236.2,4.809]
[1733670120199,2.1149,236.26,236.2,4.809]
[1733670120502,2.1149,236.26,236.21,8.66003505]
[1733670120703,2.1149,236.26,236.22,3.98212739]
[1733670120902,2.1149,236.26,236.23,2.92369228]
[1733670121102,2.1149,236.26,236.21,2.1153]
[1733670121303,2.1149,236.26,236.22,3.982341]
[1733670121504,2.1149,236.26,236.23,2.92390843]
[1733670121707,2.1149,236.26,236.21,2.1153]
[1733670122004,2.115,236.25,236.22,3.98212518]
[1733670122204,2.115,236.25,236.23,2.92371189]
[1733670122404,2.1151,236.24,236.2,4.809]
[1733670122704,2.1151,236.24,236.21,3.98239588]
[1733670122903,2.1151,236.24,236.22,2.92393112]
[1733670123106,2.1151,236.24,236.2,4.809]
[1733670123107,2.1152,236.23,236.2,4.809]
[1733670123306,2.1152,236.23,236.21,3.98255477]
[1733670123497,2.1152,236.23,236.22,2.92407383]
[1733670123898,2.1152,236.23,236.2,4.809]
[1733670124100,2.1152,236.23,236.21,3.98243765]
[1733670124307,2.08,236.32,236.2,4.809]
[1733670124308,2.1146,236.29,236.2,4.809]
[1733670124508,2.08,236.32,236.21,3.98251146]
[1733670124805,2.08,236.32,236.2,2.729]
[1733670125008,2.08,236.32,236.21,3.98251215]
[1733670125203,2.08,236.32,236.22,2.92416215]
[1733670125204,2.1146,236.29,236.22,2.92416215]
[1733670125407,2.08,236.32,236.2,2.729]
[1733670125706,2.08,236.32,236.21,2.92407674]
[1733670126005,2.08,236.32,236.2,2.729]
[1733670126206,2.08,236.32,236.21,2.92418681]
[1733670126407,2.08,236.32,236.2,2.729]
[1733670126705,2.1153,236.22,236.21,2.92407292]
[1733670127405,2.1152,236.23,236.21,2.92407292]
[1733670127609,51.00203459,236.35,236.2,2.729]
[1733670127806,2.08,236.34,236.22,2.1152]
[1733670128002,2.08,236.34,236.22,4.1952]
[1733670128202,2.08,236.34,236.23,2.92384907]
[1733670128509,2.1148,236.28,236.23,2.1151]
[1733670128708,2.1148,236.28,236.24,2.92359021]
[1733670128907,2.1148,236.28,236.25,2.92359021]
[1733670129107,2.1148,236.28,236.23,2.1151]
[1733670129309,2.1148,236.28,236.24,3.98186435]
[1733670129508,2.1148,236.28,236.25,2.92353837]
[1733670129808,2.1148,236.28,236.23,2.1151]
[1733670130009,2.1148,236.28,236.24,3.98169325]
[1733670130208,2.1148,236.28,236.25,3.98169325]
[1733670130407,53.08203459,236.35,236.22,2.08]
[1733670130609,53.08203459,236.35,236.23,1.05839359]
[1733670130911,51.00203459,236.35,236.24,3.98193283]
[1733670131109,2.1147,236.29,236.25,2.92353924]
[1733670131311,51.00203459,236.35,236.22,2.08]
[1733670131502,51.00203459,236.35,236.23,11.41797759]
[1733670131703,2.1145,236.3,236.25,2.115]
[1733670131914,2.1145,236.3,236.26,2.92329308]
[1733670132210,2.1145,236.3,236.25,2.115]
[1733670132406,2.1145,236.3,236.26,3.98144194]
[1733670132607,2.1145,236.3,236.25,2.115]
[1733670132806,2.1145,236.3,236.26,3.98144194]
[1733670133007,2.1145,236.3,236.25,2.115]
[1733670133212,51.00203459,236.35,236.26,3.98149069]
[1733670133406,51.00203459,236.35,236.23,1.2721]
[1733670133407,2.08,236.39,236.27,6.06149069]
[1733670133613,2.08,236.39,236.28,3.98149069]
[1733670133916,2.1143,236.33,236.29,2.92278502]
[1733670134105,2.1143,236.33,236.28,2.1147]
[1733670134310,2.1143,236.33,236.29,2.92265924]
[1733670134512,2.114,236.36,236.28,2.1147]
[1733670134810,2.08,236.39,236.29,3.98080857]
[1733670135106,2.08,236.39,236.28,2.08]
[1733670135307,2.08,236.39,236.29,3.98048888]
[1733670135611,2.08,236.39,236.28,2.08]
[1733670135811,2.08,236.39,236.29,3.98056737]
[1733670136109,2.08,236.39,236.28,2.08]
[1733670136409,2.1144,236.32,236.29,2.922389]
[1733670136714,2.1147,236.29,236.27,2.08]
[1733670137007,2.08,236.39,236.27,2.08]
[1733670137208,2.08,236.39,236.23,3.3521]
[1733670137407,2.1148,236.27,236.24,8.658358]
[1733670137604,2.1148,236.27,236.24,3.9810867]
[1733670137809,2.1148,236.27,236.22,2.08]
[1733670138014,2.1148,236.27,236.23,3.98197292]
[1733670138314,2.1148,236.27,236.24,3.98265935]
[1733670138508,2.1148,236.27,236.25,2.92424361]
[1733670138714,2.1148,236.27,236.22,4.1952]
[1733670138917,2.08,236.34,236.23,3.98253548]
[1733670139214,2.08,236.34,236.24,2.92419782]
[1733670139514,2.08,236.34,236.19,2.08]
[1733670139710,2.08,236.34,236.21,10.35533063]
[1733670139908,2.08,236.34,236.22,8.6619318]
[1733670140114,2.08,236.34,236.23,3.98281947]
[1733670140315,2.115,236.25,236.24,3.98281947]
[1733670140513,2.115,236.25,236.24,3.98282471]
[1733670141014,55.21541442,236.4,236.2,2.729]
[1733670141015,2.1153,236.22,236.2,2.729]
[1733670141215,2.08,236.29,236.21,3.9847629]
[1733670141416,2.1148,236.27,236.22,2.92628728]
[1733670141613,2.08,236.29,236.14,2.6273]
[1733670141811,2.08,236.29,236.15,3.98558406]
[1733670142018,2.08,236.29,236.08,1.2813]
[1733670142311,2.08,236.29,236.09,18.98648294]
[1733670142514,2.08,236.29,236.08,1.2813]
[1733670142515,2.08,236.29,236.1,17.27939541]
[1733670142717,2.1158,236.16,236.11,10.36847257]
[1733670142919,2.1158,236.16,236.12,9.30184342]
[1733670143110,4.2287,236.33,236.13,10.3587712]
[1733670143312,2.08,236.32,236.14,11.42475593]
[1733670143613,2.1155,236.19,236.15,10.35865549]
[1733670143817,2.1155,236.19,236.16,8.66474124]
[1733670144020,2.1155,236.19,236.17,3.98486763]
[1733670144220,2.1155,236.19,236.18,3.98486763]
[1733670144522,2.08,236.23,236.18,2.9260552]
[1733670144523,2.1154,236.21,236.18,2.9260552]
[1733670144717,2.08,236.23,236.14,2.116]
[1733670145017,2.1155,236.19,236.15,10.35503618]
[1733670145319,2.1155,236.19,236.16,3.98270622]
[1733670145523,2.1155,236.19,236.12,2.1161]
[1733670145712,2.1155,236.19,236.13,11.42109247]
[1733670145913,2.1155,236.19,236.14,8.66113921]
[1733670146116,2.1155,236.19,236.15,3.98274284]
[1733670146413,2.1155,236.19,236.16,2.92399773]
[1733670146618,2.1155,236.19,236.12,2.1161]
[1733670146815,2.08,236.23,236.13,8.65998774]
[1733670147021,2.08,236.23,236.14,3.9823023]
[1733670147321,2.08,236.23,236.1,2.08]
[1733670147322,2.08,236.23,236.15,3.98231173]
[1733670147521,2.08,236.23,236.1,2.08]
[1733670147721,2.1157,236.18,236.11,13.53446519]
[1733670147922,2.08,236.23,236.12,10.35278757]
[1733670148220,2.08,236.23,236.13,3.98184137]
[1733670148422,2.1156,236.18,236.14,3.98184137]
[1733670148612,2.1156,236.18,236.12,2.1161]
[1733670148816,2.1156,236.18,236.13,3.98174298]
[1733670149014,2.1156,236.18,236.14,2.92292115]
[1733670149220,2.1156,236.18,236.12,2.1161]
[1733670149415,2.1156,236.18,236.13,3.98141129]
[1733670149618,2.1156,236.18,236.14,3.98139178]
[1733670149818,2.1156,236.18,236.12,2.1161]
[1733670150015,2.1156,236.18,236.13,3.98136201]
[1733670150221,2.1156,236.18,236.14,2.92255427]
[1733670150518,2.1156,236.18,236.12,2.1161]
[1733670150717,2.1156,236.18,236.13,2.92236425]
[1733670151123,2.08,236.25,236.14,2.92236425]
[1733670151318,2.08,236.25,236.15,3.98117592]
[1733670151518,2.08,236.25,236.16,2.92236425]
[1733670151720,2.1154,236.2,236.15,2.1159]
[1733670152020,2.08,236.25,236.16,2.92189266]
[1733670152221,2.08,236.25,236.17,2.92173966]
[1733670152422,2.08,236.25,236.1,2.08]
[1733670152716,2.08,236.25,236.11,18.96361791]
[1733670153022,2.08,236.25,236.12,17.2590675]
[1733670153224,2.08,236.25,236.13,17.25986539]
[1733670153421,2.08,236.25,236.14,8.65603022]
[1733670153721,2.08,236.25,236.15,3.98073029]
[1733670154022,2.08,236.25,236.16,2.92259344]
[1733670154224,2.1155,236.19,236.14,2.116]
[1733670154425,2.1155,236.19,236.15,10.0368547]
[1733670154624,2.1155,236.19,236.16,3.98143457]
[1733670154821,2.08,236.25,236.15,1.379]
[1733670156024,2.08,236.25,236.16,2.92261795]
[1733670156217,2.1156,236.18,236.15,1.379]
[1733670157924,2.08,236.25,236.15,1.379]
[1733670157925,2.1157,236.17,236.15,1.379]
[1733670159022,2.1158,236.16,236.15,1.379]
[1733670159722,2.06,236.2,236.08,3.3978]
[1733670159921,2.06,236.2,236.09,3.98120176]
[1733670160219,2.06,236.2,236.1,2.9222714]
[1733670160424,2.06,236.2,236.08,4.6184]
[1733670160618,2.06,236.2,236.09,2.92161482]
[1733670160817,2.06,236.2,236.1,2.92161482]
[1733670161030,2.1157,236.17,236.08,4.6184]
[1733670161325,2.06,236.2,236.09,6.09633729]
[1733670161533,2.06,236.2,236.08,4.6184]
[1733670161829,2.06,236.2,236.09,3.97973742]
[1733670162126,2.06,236.2,236.08,4.6184]
[1733670162327,2.06,236.2,236.09,2.91993816]
[1733670162521,2.06,236.2,236.08,4.6184]
[1733670162726,2.06,236.2,236.09,2.91994096]
[1733670162930,2.06,236.2,236.08,2.5584]
[1733670163124,2.06,236.2,236.09,2.91994331]
[1733670163425,2.06,236.2,236.08,2.5584]
[1733670163729,2.06,236.2,236.09,2.91924924]
[1733670163930,2.06,236.2,236.08,2.5584]
[1733670164125,2.06,236.2,236.03,2.1169]
[1733670164326,2.06,236.2,236.04,8.64757679]
[1733670164633,2.06,236.2,236.05,3.97772688]
[1733670164926,2.06,236.2,236.03,2.1169]
[1733670165127,2.06,236.2,236.04,3.97780469]
[1733670165325,2.06,236.2,236.05,2.91871287]
[1733670165525,2.06,236.2,236.02,2.6417]
[1733670166224,4.2311,236.19,236.02,2.6417]
[1733670166626,4.2311,236.19,236.02,1.3646]
[1733670167329,4.2311,236.19,235.96,1.3456]
[1733670167525,4.2311,236.19,235.97,10.75676732]
[1733670167824,4.2311,236.19,235.98,3.97467833]
[1733670168133,4.2311,236.19,235.98,2.1174]
[1733670168327,4.2311,236.19,235.96,2.7486]
[1733670168528,4.2311,236.19,235.97,7.57597107]
[1733670168725,4.2311,236.19,235.96,2.7486]
[1733670168726,2.1168,236.05,236.0,2.1171]
[1733670169036,2.1168,236.05,235.96,2.7486]
[1733670169333,2.1169,236.04,235.99,2.1173]
[1733670170525,2.06,236.09,235.97,2.1175]
[1733670170526,2.117,236.03,235.97,2.1175]
[1733670170726,2.06,236.09,235.96,2.7486]
[1733670171033,2.06,236.09,235.97,2.91191695]
[1733670171231,2.06,236.09,235.97,2.1175]
[1733670172036,2.06,236.09,235.98,2.1173]
[1733670172226,2.06,236.09,235.96,2.7486]
[1733670172635,2.06,236.11,235.97,2.90969927]
[1733670172836,2.06,236.11,235.98,8.62397824]
[1733670173139,2.06,236.11,235.99,2.90969927]
[1733670173342,2.06,236.11,236.0,4.96969927]
[1733670173644,2.06,236.11,236.0,2.06]
[1733670173836,2.1166,236.08,236.03,2.1169]
[1733670174141,2.06,236.12,236.03,2.1169]
[1733670175037,2.06,236.12,236.02,2.117]
[1733670175440,2.1166,236.07,236.02,2.117]
[1733670176844,2.06,236.12,236.0,2.06]
[1733670177742,2.1165,236.09,236.01,2.1171]
[1733670178043,2.06,236.12,236.01,2.1171]
[1733670178238,2.06,236.12,235.96,2.7486]
[1733670178440,2.06,236.12,235.97,2.91060154]
[1733670178644,2.06,236.12,235.96,2.7486]
[1733670178843,2.1165,236.08,235.97,5.02810712]
[1733670179044,2.06,236.07,235.97,5.02810712]
[1733670179355,2.06,236.07,235.97,2.1175]
[1733670179547,2.06,236.07,235.96,2.7486]
[1733670179743,2.06,236.07,235.98,2.1174]
[1733670179943,2.06,236.07,235.96,2.7486]
[1733670180149,2.117,236.03,235.97,2.91115251]
[1733670180344,2.117,236.03,235.98,2.91115251]
[1733670180543,2.117,236.03,235.96,2.7486]
[1733670180749,2.1171,236.01,235.97,2.91211904]
[1733670180946,2.1171,236.01,235.96,2.7486]
[1733670180947,2.06,236.07,235.98,2.91215192]
[1733670181144,2.06,236.07,235.99,2.91361818]
[1733670181344,2.06,236.07,235.97,2.1174]
[1733670181650,2.06,236.07,235.98,2.91327742]
[1733670181947,2.1171,236.02,235.99,2.91327742]
[1733670182244,2.1171,236.02,235.97,2.1174]
[1733670182645,2.1171,236.02,235.98,2.91406032]
[1733670182846,2.1171,236.02,235.99,2.91406032]
[1733670183148,2.1171,236.01,235.97,2.1174]
[1733670183338,2.1171,236.01,235.98,2.91457531]
[1733670183540,2.1171,236.01,235.99,2.91457531]
[1733670183746,2.1171,236.01,235.97,2.1174]
[1733670183946,2.1171,236.01,235.98,2.91457531]
[1733670184247,2.1171,236.01,235.99,2.91457531]
[1733670184447,2.1171,236.01,236.0,2.91457531]
[1733670185640,2.1171,236.01,235.97,2.1174]
[1733670185848,2.1173,236.0,235.98,8.64139177]
[1733670186039,2.1173,236.0,235.99,2.91616172]
[1733670186245,2.1173,236.0,235.99,8.64265273]
[1733670186450,2.1173,236.0,235.99,7.58328114]
[1733670187253,2.1173,236.0,235.99,8.64265273]
[1733670187847,2.1173,236.0,235.99,2.91616172]
[1733670188252,2.1173,236.0,235.93,4.20308948]
[1733670188253,2.06,236.01,235.93,4.20308948]
[1733670188445,2.06,236.01,235.94,2.91722252]
[1733670188653,2.06,236.01,235.95,2.91722252]
[1733670188852,2.1175,235.98,235.91,2.118]
[1733670189152,2.06,236.01,235.92,8.64436714]
[1733670189353,2.1176,235.97,235.91,2.118]
[1733670189547,2.06,236.01,235.92,7.58453834]
[1733670189751,2.06,236.01,235.93,2.91680498]
[1733670189946,2.06,236.01,235.94,2.91680498]
[1733670190145,2.06,236.01,235.88,3.9998]
[1733670190348,2.06,236.01,235.89,7.58235146]
[1733670190549,2.06,236.01,235.9,7.58235146]
[1733670190754,2.06,236.01,235.91,2.91628902]
[1733670190955,2.06,236.01,235.88,3.9998]
[1733670191153,2.06,236.01,235.89,7.58242846]
[1733670191352,2.06,236.01,235.9,2.91631864]
[1733670191556,2.06,236.01,235.91,2.91631864]
[1733670191758,2.118,235.92,235.88,3.9998]
[1733670191951,2.118,235.92,235.89,7.58013188]
[1733670192155,2.118,235.92,235.9,2.91543534]
[1733670192351,2.118,235.92,235.91,2.91543534]
[1733670192559,2.118,235.92,235.88,3.9998]
[1733670192759,2.118,235.92,235.89,2.91479297]
[1733670192950,2.118,235.91,235.9,2.91479297]
[1733670194358,2.118,235.91,235.88,3.9998]
[1733670194559,2.118,235.91,235.89,2.91334163]
[1733670194761,2.06,235.95,235.88,2.6242]
[1733670194955,2.1182,235.89,235.88,1.3297]
[1733670195153,2.06,235.95,235.87,4.20527983]
[1733670196172,2.06,235.95,235.84,1.3383]
[1733670196458,2.06,235.95,235.85,2.91182116]
[1733670196658,2.1183,235.88,235.86,2.91182116]
[1733670196859,2.1183,235.88,235.84,1.3383]
[1733670197064,2.1183,235.88,235.85,2.91182921]
[1733670197256,2.1183,235.88,235.86,2.91182921]
[1733670197561,2.1183,235.88,235.84,1.3383]
[1733670197755,2.1183,235.88,235.85,2.91147425]
[1733670197952,2.1184,235.87,235.86,2.91147425]
[1733670199055,2.06,235.95,235.79,2.6616]
[1733670199360,2.1181,235.91,235.8,5.72031341]
[1733670199555,2.06,235.95,235.81,7.56980711]
[1733670199760,2.06,235.95,235.82,2.91146427]
[1733670199959,2.1185,235.86,235.83,2.91146427]
[1733670200161,2.1185,235.86,235.79,6.8607]
[1733670200362,2.1185,235.86,235.8,7.56713657]
[1733670200659,2.1185,235.86,235.81,7.56713657]
[1733670200963,2.1185,235.86,235.82,2.91043714]
[1733670201165,2.1185,235.86,235.83,2.91043714]
[1733670201366,2.1185,235.86,235.8,2.119]
[1733670201560,2.1187,235.84,235.81,7.56686285]
[1733670201865,2.1187,235.84,235.82,2.91033186]
[1733670202062,2.1187,235.84,235.83,2.91033186]
[1733670202768,2.1187,235.84,235.79,2.6616]
[1733670202959,2.1187,235.84,235.8,7.56681612]
[1733670203262,2.1187,235.84,235.81,7.56681612]
[1733670203462,2.1186,235.85,235.82,2.91031389]
[1733670203657,2.08,235.9,235.83,2.91031389]
[1733670203855,2.08,235.9,235.77,3.39]
[1733670204057,2.08,235.9,235.78,15.50952605]
[1733670204261,2.08,235.9,235.79,7.56734545]
[1733670204464,2.08,235.9,235.8,2.91051748]
[1733670204660,2.08,235.9,235.81,2.91051748]
[1733670204855,2.08,235.9,235.77,3.39]
[1733670205061,2.1187,235.84,235.78,7.5686014]
[1733670205261,2.08,235.9,235.79,7.5686014]
[1733670205462,2.08,235.9,235.8,2.91100054]
[1733670205759,2.08,235.9,235.77,1.2707]
[1733670205959,2.08,235.9,235.78,2.91058781]
[1733670206166,2.08,235.9,235.77,1.2707]
[1733670206365,2.1185,235.87,235.77,1.2707]
[1733670206663,2.08,235.9,235.77,1.2707]
[1733670207061,2.1191,235.8,235.77,1.2707]
[1733670207666,2.08,235.85,235.77,1.2707]
[1733670207962,2.08,235.84,235.77,1.2707]
[1733670208166,2.1191,235.79,235.77,1.2707]
[1733670208467,2.08,235.87,235.78,2.90813305]
[1733670208664,2.1188,235.83,235.77,3.39]
[1733670208866,2.1188,235.83,235.78,2.90805893]
[1733670209167,2.08,235.87,235.79,2.90805893]
[1733670209367,2.08,235.87,235.8,2.90805893]
[1733670209568,2.08,235.87,235.77,1.2707]
[1733670209772,2.1189,235.81,235.78,2.90755648]
[1733670210065,2.08,235.87,235.79,2.90755648]
[1733670210267,2.08,235.87,235.8,2.90787748]
[1733670210467,2.08,235.87,235.77,1.2707]
[1733670211264,2.1191,235.8,235.77,1.2707]
[1733670211764,2.1189,235.81,235.77,1.2707]
[1733670211965,2.1189,235.81,235.78,2.90648712]
[1733670212265,2.1189,235.81,235.77,1.2707]
[1733670212468,2.1189,235.81,235.78,2.90576522]
[1733670212668,2.1189,235.81,235.79,2.90576522]
[1733670212863,2.1187,235.84,235.77,1.2707]
[1733670213168,2.08,235.87,235.78,2.90571488]
[1733670213366,4.2351,235.97,235.79,2.90571488]
[1733670213564,2.1186,235.85,235.8,2.90571488]
[1733670213769,4.2351,235.97,235.81,2.90571488]
[1733670214063,2.1185,235.87,235.82,2.90571488]
[1733670214264,2.08,235.91,235.81,2.1189]
[1733670214468,2.08,235.91,235.82,2.90509715]
[1733670214670,2.08,235.91,235.81,2.1189]
[1733670214868,12.7,236.09,235.82,2.90502123]
[1733670215067,12.7,236.09,235.8,2.08]
[1733670215068,4.19828503,236.04,235.84,2.1186]
[1733670215465,2.11828503,236.04,235.86,2.1185]
[1733670215768,2.11828503,236.04,235.8,2.08]
[1733670216158,2.08,236.03,235.89,2.1182]
[1733670216365,2.11828503,236.04,235.89,2.1182]
[1733670216567,2.1175,235.97,235.89,1.2825]
[1733670216867,2.1175,235.97,235.89,2.6698]
[1733670217068,2.1174,235.99,235.89,2.6698]
[1733670217262,2.14,236.03,235.89,2.6698]
[1733670217659,2.1174,235.98,235.91,2.1179]
[1733670217857,2.14,236.03,235.91,2.1179]
[1733670218061,2.14,236.03,235.89,2.6698]
[1733670218262,2.1174,235.98,235.92,2.1179]
[1733670218658,2.14,235.98,235.83,2.14]
[1733670220368,2.14,235.98,235.8,4.7614]
[1733670220568,2.14,235.98,235.81,2.90733744]
[1733670220767,2.14,235.98,235.8,2.6424]
[1733670221069,2.14,235.98,235.81,7.55850454]
[1733670221266,2.14,235.98,235.82,7.56031657]
[1733670221460,2.14,235.98,235.83,2.90723564]
[1733670221664,2.14,235.98,235.8,2.6424]
[1733670221860,2.1182,235.89,235.83,2.1187]